{"text_format":"1","workbook":"xlsx","n_sheets":2,"sheets":["Area","Volume"],"not_rendered":{"charts":0,"images":11,"macros":1,"external_links":0,"defined_names":4,"comments":0,"pivot_tables":0},"unopened":[],"bounds":{"document_bytes":16777216,"sheet_cells":100000,"rows_first":2000,"rows_last":500,"rows_between":2000,"halvings":0,"cell_chars":16384,"cell_head_chars":4096},"cells_cut":0,"cells_raw":0,"read":"whole","date_system":"1900"}

{"sheet":"Area","index":0,"n_rows":61,"n_cols":55,"rows_kept":61,"cut":false,"hidden":false,"merged":[[26,18,26,20],[30,32,30,35],[23,43,23,44],[27,36,27,37],[1,1,4,47],[12,29,12,30],[13,29,13,45],[8,46,8,47],[12,18,12,20],[16,32,16,35],[25,32,26,33],[25,34,26,35],[35,43,37,44],[40,42,40,44],[41,31,41,40],[37,34,38,35],[39,36,39,39],[57,19,57,22],[49,28,50,29],[53,31,53,40],[54,20,54,22],[40,18,40,20],[43,19,43,22]]}
[]
[null,"N4 Lifeskills - Problem Solving Area                                                                                                                                                                                                                                                                                                                         Created by Mr.Lafferty@mathsrevision.com                                                                                                                                                                                                                                               "]
[]
[]
[]
[]
[null,{"$f":"\"Q1.   Hannah wants to wallpaper one wall in her livingroom.\"","v":"Q1.   Hannah wants to wallpaper one wall in her livingroom."}]
[]
[null,null,{"$f":"\" 1 roll of wallpaper measures \"&BB17&\" in length and \"&BA14&\" in width.\"","v":" 1 roll of wallpaper measures 9m in length and 50cm in width."},null,null,null,null,null,null,null,null,null,null,null,null,null,null,null,null,null,null,null,null,null,null,null,null,null,null,null,null,null,null,null,null,null,null,null,null,null,null,null,null,null,null,null,{"$f":"BB15","v":"3m"}]
[]
[null,null,{"$f":"\"(a)  Work out how many rolls of wallpaper she will need.\"","v":"(a)  Work out how many rolls of wallpaper she will need."},null,null,null,null,null,null,null,null,null,null,null,null,null,null,null,null,null,null,null,null,null,null,null,null,null,null,null,null,null,null,null,null,null,null,null,null,null,null,null,null,null,null,null,null,null,null,null,null,{"$f":"ROUND(RAND()*(4-3)+3,0)","v":3},"height length"]
[null,null,null,null,null,null,null,null,null,null,null,null,null,null,null,null,null,null,null,null,null,null,null,null,null,null,null,null,null,null,null,null,null,null,null,null,null,null,null,null,null,null,null,null,null,null,null,null,null,null,null,{"$f":"AZ11*2+ROUND(RAND()*(2-1)+1,0)","v":7},"length of room"]
[null,null,null,null,null,null,null,null,null,null,null,null,null,null,null,null,null,null,null,null,null,"rolls",null,null,null,null,null,null,null,{"$f":"BA14","v":"50cm"},null,null,null,null,null,null,null,null,null,null,null,null,null,null,null,null,null,null,null,null,null,{"$f":"ROUND(RAND()*(10-4)+4,0)","v":9},"wallpaper length"]
[null,null,null,null,null,null,null,null,null,null,null,null,null,null,null,null,null,null,null,null,null,null,null,null,null,null,null,null,null,{"$f":"BB16","v":"7m"},null,null,null,null,null,null,null,null,null,null,null,null,null,null,null,null,null,null,null,null,null,{"$f":"ROUND(RAND()*(8-4)+4,0)*10","v":50},{"$f":"CONCATENATE(AZ14,\"cm\")","v":"50cm"}]
[null,null,null,null,null,null,null,null,null,null,null,null,null,null,null,null,null,null,null,null,null,null,null,null,null,null,null,null,null,null,null,null,null,null,null,null,null,null,null,null,null,null,null,null,null,null,null,null,null,null,null,{"$f":"ROUNDUP((AZ12*100/AZ14),0)","v":14},null,{"$f":"CONCATENATE(AZ11,\"m\")","v":"3m"}]
[null,null,{"$f":"\"(b)  Given one roll of wallpaper cost £\"&TEXT(AZ18,\"0.00\")&\" calculate her total cost for the wallpaper.\"","v":"(b)  Given one roll of wallpaper cost £10.70 calculate her total cost for the wallpaper."},null,null,null,null,null,null,null,null,null,null,null,null,null,null,null,null,null,null,null,null,null,null,null,null,null,null,null,null,null,null,null,null,null,null,null,null,null,null,null,null,null,null,null,null,null,null,null,null,{"$f":"AZ15*AZ11","v":42},null,{"$f":"CONCATENATE(AZ12,\"m\")","v":"7m"}]
[null,null,null,null,null,null,null,null,null,null,null,null,null,null,null,null,null,null,null,null,null,null,null,null,null,null,null,null,null,null,null,"£",null,null,null,null,null,null,null,null,null,null,null,null,null,null,null,null,null,null,null,{"$f":"ROUNDUP(AZ16/AZ13,0)","v":5},null,{"$f":"CONCATENATE(AZ13,\"m\")","v":"9m"}]
[null,null,null,null,null,null,null,null,null,null,null,null,null,null,null,null,null,null,null,null,null,null,null,null,null,null,null,null,null,null,null,null,null,null,null,null,null,null,null,null,null,null,null,null,null,null,null,null,null,null,null,{"$f":"ROUND(RAND()*(15-8)+8,1)","v":10.7}]
[null,null,null,null,null,null,null,null,null,null,null,null,null,null,null,null,null,null,null,null,null,null,null,null,null,null,null,null,null,null,null,null,null,null,null,null,null,null,null,null,null,null,null,null,null,null,null,null,null,null,null,{"$f":"ROUND(AZ17*AZ18,2)","v":53.5}]
[]
[null,{"$f":"\"Q2.   Alistair the tiler has got a job to tile a bathroom wall.\"","v":"Q2.   Alistair the tiler has got a job to tile a bathroom wall."},null,null,null,null,null,null,null,null,null,null,null,null,null,null,null,null,null,null,null,null,null,null,null,null,null,null,null,null,null,null,null,null,null,null,null,null,null,null,null,null,null,null,null,null,null,null,null,null,null,{"$f":"ROUND(RAND()*(5-3)+3,0)","v":5},{"$f":"CONCATENATE(AZ21,\"m\")","v":"5m"}]
[null,null,null,null,null,null,null,null,null,null,null,null,null,null,null,null,null,null,null,null,null,null,null,null,null,null,null,null,null,null,null,null,null,null,null,null,null,null,null,null,null,null,null,null,null,null,null,null,null,null,null,{"$f":"AZ21+1","v":6}]
[null,null,{"$f":"\"He uses square tiles that have sides \"&BA23&\".\"","v":"He uses square tiles that have sides 60cm."},null,null,null,null,null,null,null,null,null,null,null,null,null,null,null,null,null,null,null,null,null,null,null,null,null,null,null,null,null,null,null,null,null,null,null,null,null,null,null,null,null,null,null,null,null,null,null,null,{"$f":"ROUND(RAND()*(8-4)+4,0)*10","v":60},{"$f":"CONCATENATE(AZ23,\"cm\")","v":"60cm"}]
[null,null,null,null,null,null,null,null,null,null,null,null,null,null,null,null,null,null,null,null,null,null,null,null,null,null,null,null,null,null,null,null,null,null,null,null,null,null,null,null,null,null,null,{"$f":"BB25","v":"3m"}]
[null,null,{"$f":"\"(a)  Work out how many tiles he needs to cover the whole wall.\"","v":"(a)  Work out how many tiles he needs to cover the whole wall."},null,null,null,null,null,null,null,null,null,null,null,null,null,null,null,null,null,null,null,null,null,null,null,null,null,null,null,null,null,null,null,null,null,null,null,null,null,null,null,null,null,null,null,null,null,null,null,null,{"$f":"AZ21*AZ23","v":300},{"$f":"AZ25/100","v":3},{"$f":"CONCATENATE(BA25,\"m\")","v":"3m"},"height length"]
[null,null,null,null,null,null,null,null,null,null,null,null,null,null,null,null,null,null,null,null,null,null,null,null,null,null,null,null,null,null,null,null,null,null,null,null,null,null,null,null,null,null,null,null,null,null,null,null,null,null,null,{"$f":"AZ22*AZ23","v":360},{"$f":"AZ26/100","v":3.6},{"$f":"CONCATENATE(BA26,\"m\")","v":"3.6m"},"length of room"]
[null,null,null,null,null,null,null,null,null,null,null,null,null,null,null,null,null,null,null,null,null,"tiles"]
[null,null,null,null,null,null,null,null,null,null,null,null,null,null,null,null,null,null,null,null,null,null,null,null,null,null,null,null,null,null,null,null,null,null,null,null,{"$f":"BB26","v":"3.6m"}]
[null,null,null,null,null,null,null,null,null,null,null,null,null,null,null,null,null,null,null,null,null,null,null,null,null,null,null,null,null,null,null,null,null,null,null,null,null,null,null,null,null,null,null,null,null,null,null,null,null,null,null,{"$f":"AZ22*AZ21","v":30}]
[null,null,{"$f":"\"(b)  Given a pack of 6 tiles cost £\"&TEXT(AZ32,\"0.00\")&\". Calculate the total cost of the tiles.\"","v":"(b)  Given a pack of 6 tiles cost £27.90. Calculate the total cost of the tiles."}]
[null,null,null,null,null,null,null,null,null,null,null,null,null,null,null,null,null,null,null,null,null,null,null,null,null,null,null,null,null,null,null,"£"]
[null,null,null,null,null,null,null,null,null,null,null,null,null,null,null,null,null,null,null,null,null,null,null,null,null,null,null,null,null,null,null,null,null,null,null,null,null,null,null,null,null,null,null,null,null,null,null,null,null,null,null,{"$f":"ROUND(RAND()*(40-20.2)+20.2,1)","v":27.9}]
[null,null,null,null,null,null,null,null,null,null,null,null,null,null,null,null,null,null,null,null,null,null,null,null,null,null,null,null,null,null,null,null,null,null,null,null,null,null,null,null,null,null,null,null,null,null,null,null,null,null,null,{"$f":"ROUNDUP(AZ29/6,0)*AZ32","v":139.5}]
[null,null,null,null,null,null,null,null,null,null,null,null,null,null,null,null,null,null,null,null,null,null,null,null,null,null,null,null,null,null,null,null,null,null,null,null,null,null,null,null,null,null,null,null,null,null,null,null,null,null,null,{"$f":"ROUND(RAND()*(2-1.5)+1.5,1)","v":1.9},{"$f":"CONCATENATE(AZ34,\"m\")","v":"1.9m"}]
[null,{"$f":"\"Q3.   Kyle is going to paint the outside walls of his tool shed. The shed has a window.\"","v":"Q3.   Kyle is going to paint the outside walls of his tool shed. The shed has a window."},null,null,null,null,null,null,null,null,null,null,null,null,null,null,null,null,null,null,null,null,null,null,null,null,null,null,null,null,null,null,null,null,null,null,null,null,null,null,null,null,null,null,null,null,null,null,null,null,null,{"$f":"ROUND(RAND()*(8-5)+5,0)*0.5","v":2.5},{"$f":"CONCATENATE(AZ35,\"m\")","v":"2.5m"}]
[null,null,null,{"$f":"\"The shed is in the shape of a cuboid.\"","v":"The shed is in the shape of a cuboid."},null,null,null,null,null,null,null,null,null,null,null,null,null,null,null,null,null,null,null,null,null,null,null,null,null,null,null,null,null,null,null,null,null,null,null,null,null,null,null,{"$f":"BA35","v":"2.5m"},null,null,null,null,null,null,null,{"$f":"AZ35-ROUND(RAND()*(1-0.5)+0.5,1)","v":1.5},{"$f":"CONCATENATE(AZ36,\"m\")","v":"1.5m"}]
[null,null,null,null,null,null,null,null,null,null,null,null,null,null,null,null,null,null,null,null,null,null,null,null,null,null,null,null,null,null,null,null,null,null,null,null,null,null,null,null,null,null,null,null,null,null,null,null,null,null,null,{"$f":"AZ36+ROUND(RAND()*(2-1.2)+1.2,1)","v":3},"3m"]
[null,null,null,{"$f":"\" 1 litre of paint covers an area of \"&AZ42&\" square metres and costs £\"&TEXT(AZ46,\"0.00\")&\".\"","v":" 1 litre of paint covers an area of 9 square metres and costs £19.70."},null,null,null,null,null,null,null,null,null,null,null,null,null,null,null,null,null,null,null,null,null,null,null,null,null,null,null,null,null,null,"1m",null,null,null,null,null,null,null,null,null,null,null,null,null,null,null,null,{"$f":"2*AZ35*AZ36","v":7.5}]
[null,null,null,null,null,null,null,null,null,null,null,null,null,null,null,null,null,null,null,null,null,null,null,null,null,null,null,null,null,null,null,null,null,null,null,null,null,null,null,null,null,null,null,null,null,null,null,null,null,null,null,{"$f":"2*AZ37*AZ35-(1*AZ34)","v":13.1}]
[null,null,null,null,null,null,null,null,null,null,null,null,null,null,null,null,null,null,null,null,null,null,null,null,null,null,null,null,null,null,null,null,null,null,null,null,{"$f":"BA34","v":"1.9m"}]
[null,null,{"$f":"\"(a)   How many tins of paint will Kyle need ?\"","v":"(a)   How many tins of paint will Kyle need ?"},null,null,null,null,null,null,null,null,null,null,null,null,null,null,null,null,null,null,"tins",null,null,null,null,null,null,null,null,null,null,null,null,null,null,null,null,null,null,null,null,{"$f":"BA36","v":"1.5m"}]
[null,null,null,null,null,null,null,null,null,null,null,null,null,null,null,null,null,null,null,null,null,null,null,null,null,null,null,null,null,null,null,{"$f":"BA37","v":"3m"},null,null,null,null,null,null,null,null,null,null,null,null,null,null,null,null,null,null,null,{"$f":"ROUND(RAND()*(15-7)+7,0)","v":9},"coverage"]
[null,null,null,null,null,null,null,null,null,null,null,null,null,null,null,null,null,null,null,null,null,null,null,null,null,null,null,null,null,null,null,null,null,null,null,null,null,null,null,null,null,null,null,null,null,null,null,null,null,null,null,{"$f":"AZ38+AZ39","v":20.6},"Area needed"]
[null,null,{"$f":"\"(b)  Calculate the total cost of the paint needed.\"","v":"(b)  Calculate the total cost of the paint needed."},null,null,null,null,null,null,null,null,null,null,null,null,null,null,null,"£",null,null,null,null,null,null,null,null,null,null,null,null,null,null,null,null,null,null,null,null,null,null,null,null,null,null,null,null,null,null,null,null,{"$f":"AZ43/AZ42","v":2.2888888888888892}]
[null,null,null,null,null,null,null,null,null,null,null,null,null,null,null,null,null,null,null,null,null,null,null,null,null,null,null,null,null,null,null,null,null,null,null,null,null,null,null,null,null,null,null,null,null,null,null,null,null,null,null,{"$f":"ROUNDUP(AZ44,0)","v":3},"tins"]
[null,null,null,null,null,null,null,null,null,null,null,null,null,null,null,null,null,null,null,null,null,null,null,null,null,null,null,null,null,null,null,null,null,null,null,null,null,null,null,null,null,null,null,null,null,null,null,null,null,null,null,{"$f":"ROUND(RAND()*(19.9-9.9)+9.9,1)","v":19.7}]
[null,null,null,null,null,null,null,null,null,null,null,null,null,null,null,null,null,null,null,null,null,null,null,null,null,null,null,null,null,null,null,null,null,null,null,null,null,null,null,null,null,null,null,null,null,null,null,null,null,null,null,{"$f":"AZ45*AZ46","v":59.099999999999994}]
[null,null,null,null,null,null,null,null,null,null,null,null,null,null,null,null,null,null,null,null,null,null,null,null,null,null,null,null,null,null,null,null,null,null,null,null,null,null,null,null,null,null,null,null,null,null,null,null,null,null,null,{"$f":"ROUND(RAND()*(15-8)+8,0)","v":10},{"$f":"CONCATENATE(AZ48,\"m\")","v":"10m"}]
[null,{"$f":"\"Q4.   Mr Lafferty is going to returf his lawn.\"","v":"Q4.   Mr Lafferty is going to returf his lawn."},null,null,null,null,null,null,null,null,null,null,null,null,null,null,null,null,null,null,null,null,null,null,null,null,null,null,null,null,null,null,null,null,null,null,null,null,null,null,null,null,null,null,null,null,null,null,null,null,null,{"$f":"ROUND(AZ48 +AZ48*1.6,0)","v":26},{"$f":"CONCATENATE(AZ49,\"m\")","v":"26m"}]
[null,null,"   The lawn is in the shape of a square and a triangle.",null,null,null,null,null,null,null,null,null,null,null,null,null,null,null,null,null,null,null,null,null,null,null,null,null,{"$f":"BA48","v":"10m"}]
[]
[null,null,{"$f":"\" The turf comes in rolls which cover an area of \"&AZ55&\" square metres and cost £\"&TEXT(AZ57,\"0.00\")&\".\"","v":" The turf comes in rolls which cover an area of 8 square metres and cost £4.10."}]
[]
[null,null,null,null,null,null,null,null,null,null,null,null,null,null,null,null,null,null,null,null,null,null,null,null,null,null,null,null,null,null,null,{"$f":"BA49","v":"26m"}]
[null,null,{"$f":"\"(a)   How many \"&AZ55&\" square metres of turf will he need ?\"","v":"(a)   How many 8 square metres of turf will he need ?"},null,null,null,null,null,null,null,null,null,null,null,null,null,null,null,null,null,null,null,null,"rolls",null,null,null,null,null,null,null,null,null,null,null,null,null,null,null,null,null,null,null,null,null,null,null,null,null,null,null,{"$f":"ROUND(RAND()*(10-3)+3,0)","v":8}]
[null,null,null,null,null,null,null,null,null,null,null,null,null,null,null,null,null,null,null,null,null,null,null,null,null,null,null,null,null,null,null,null,null,null,null,null,null,null,null,null,null,null,null,null,null,null,null,null,null,null,null,{"$f":"AZ48*AZ48+0.5*(AZ49-AZ48)*AZ48","v":180},"coverage"]
[null,null,null,null,null,null,null,null,null,null,null,null,null,null,null,null,null,null,null,null,null,null,null,null,null,null,null,null,null,null,null,null,null,null,null,null,null,null,null,null,null,null,null,null,null,null,null,null,null,null,null,{"$f":"ROUND(RAND()*(4.5-2.5)+2.5,1)","v":4.0999999999999996},"cost"]
[null,null,{"$f":"\"(b)  Calculate the total cost of the turf needed.\"","v":"(b)  Calculate the total cost of the turf needed."},null,null,null,null,null,null,null,null,null,null,null,null,null,null,null,"£",null,null,null,null,null,null,null,null,null,null,null,null,null,null,null,null,null,null,null,null,null,null,null,null,null,null,null,null,null,null,null,null,{"$f":"ROUNDUP(AZ56/AZ55,0)","v":23}]
[]
[]
[null,null,null,null,null,null,null,null,null,null,null,null,null,null,null,null,null,null,null,null,null,null,null,null,null,null,null,null,null,null,null,null,null,null,null,null,null,null,null,null,null,null,null,null,null,null,null,null,null,null,null,{"$f":"AZ58*AZ57","v":94.3}]

{"sheet":"Volume","index":1,"n_rows":44,"n_cols":65,"rows_kept":44,"cut":false,"hidden":false,"merged":[[1,1,4,47],[29,11,29,15],[13,13,13,15],[43,13,43,15],[29,23,29,25],[23,27,28,29]]}
[]
[null,"N4 Lifeskills - Problem Solving Volume                                                                                                                                                                   Created by Mr.Lafferty@mathsrevision.com                                                                                                                                                                                                                                               "]
[]
[]
[null,null,null,null,null,null,null,null,null,null,null,null,null,null,null,null,null,null,null,null,null,null,null,null,null,null,null,null,null,null,null,null,null,null,null,null,null,null,null,null,null,null,null,null,null,null,null,null,null,null,null,null,null,null,"OP1",null,"OP2",null,"OP3",null,"OP4",null,"OP5",null,"OP6"]
[null,null,null,null,null,null,null,null,null,null,null,null,null,null,null,null,null,null,null,null,null,null,null,null,null,null,null,null,null,null,null,null,null,null,null,null,null,null,null,null,null,null,null,null,null,null,null,null,null,null,null,{"$f":"AZ9*ROUND(RAND()*(10-5)+5,0)","v":24},null,"1,1",{"$f":"ROUNDDOWN(AZ6/AZ9,0)","v":8},"1,1",{"$f":"ROUNDDOWN(AZ6/AZ9,0)","v":8},"2,1",{"$f":"ROUNDDOWN(AZ7/AZ9,0)","v":10},"2,1",{"$f":"ROUNDDOWN(AZ7/AZ9,0)","v":10},"3,1",{"$f":"ROUNDDOWN(AZ8/AZ9,0)","v":6},"3,1",{"$f":"ROUNDDOWN(AZ8/AZ9,0)","v":6}]
[null,null,{"$f":"\"Q1. A food storage box capacity is in the shape of a cuboid and measures \"&AZ6&\"cm by \"&AZ7&\"cm by \"&AZ8&\"cm.\"","v":"Q1. A food storage box capacity is in the shape of a cuboid and measures 24cm by 30cm by 18cm."},null,null,null,null,null,null,null,null,null,null,null,null,null,null,null,null,null,null,null,null,null,null,null,null,null,null,null,null,null,null,null,null,null,null,null,null,null,null,null,null,null,null,null,null,null,null,null,null,{"$f":"AZ10*ROUND(RAND()*(10-5)+5,0)","v":30},null,"2,2",{"$f":"ROUNDDOWN(AZ7/AZ10,0)","v":10},"2,3",{"$f":"ROUNDDOWN(AZ7/AZ11,0)","v":10},"1,2",{"$f":"ROUNDDOWN(AZ6/AZ10,0)","v":8},"1,3",{"$f":"ROUNDDOWN(AZ6/AZ11,0)","v":8},"2,2",{"$f":"ROUNDDOWN(AZ7/AZ10,0)","v":10},"2,3",{"$f":"ROUNDDOWN(AZ7/AZ11,0)","v":10}]
[null,null,null,null,null,null,null,null,null,null,null,null,null,null,null,null,null,null,null,null,null,null,null,null,null,null,null,null,null,null,null,null,null,null,null,null,null,null,null,null,null,null,null,null,null,null,null,null,null,null,null,{"$f":"AZ11*ROUND(RAND()*(10-5)+5,0)","v":18},null,"3,3",{"$f":"ROUNDDOWN(AZ8/AZ11,0)","v":6},"3,2",{"$f":"ROUNDDOWN(AZ8/AZ10,0)","v":6},"3,3",{"$f":"ROUNDDOWN(AZ8/AZ11,0)","v":6},"3,2",{"$f":"ROUNDDOWN(AZ8/AZ10,0)","v":6},"1,3",{"$f":"ROUNDDOWN(AZ6/AZ11,0)","v":8},"1,2",{"$f":"ROUNDDOWN(AZ6/AZ10,0)","v":8}]
[null,null,null,{"$f":"\"Identical small CUBE shaped boxes measuring \"&AZ9&\"cm are placed in the larger box\"","v":"Identical small CUBE shaped boxes measuring 3cm are placed in the larger box"},null,null,null,null,null,null,null,null,null,null,null,null,null,null,null,null,null,null,null,null,null,null,null,null,null,null,null,null,null,null,null,null,null,null,null,null,null,null,null,null,null,null,null,null,null,null,null,{"$f":"ROUND(RAND()*(6-3)+3,0)*0.5","v":3},null,0,{"$f":"BC6*BC7*BC8","v":480},0,{"$f":"BE6*BE7*BE8","v":480},0,{"$f":"BG6*BG7*BG8","v":480},0,{"$f":"BI6*BI7*BI8","v":480},0,{"$f":"BK6*BK7*BK8","v":480},0,480]
[null,null,null,null,null,null,null,null,null,null,null,null,null,null,null,null,null,null,null,null,null,null,null,null,null,null,null,null,null,null,null,null,null,null,null,null,null,null,null,null,null,null,null,null,null,null,null,null,null,null,null,{"$f":"AZ9","v":3}]
[null,null,null,"What is the maximum number of small boxes that can fit exactly into the larger box ?",null,null,null,null,null,null,null,null,null,null,null,null,null,null,null,null,null,null,null,null,null,null,null,null,null,null,null,null,null,null,null,null,null,null,null,null,null,null,null,null,null,null,null,null,null,null,null,{"$f":"AZ10","v":3}]
[null,null,null,null,null,null,null,null,null,null,null,null,null,null,null,null,null,null,null,null,null,null,null,null,null,null,null,null,null,null,null,null,null,null,null,null,null,null,null,null,null,null,null,null,null,null,null,null,null,null,null,{"$f":"AZ6*AZ7*AZ8","v":12960}]
[null,null,null,null,null,null,null,null,null,null,null,null,null,null,null,null,null,null,null,null,null,null,null,null,null,null,null,null,null,null,null,null,null,null,null,null,null,null,null,null,null,null,null,null,null,null,null,null,null,null,null,{"$f":"AZ9*AZ10*AZ11","v":27}]
[null,null,null,null,null,null,null,null,null,null,null,null,null,null,null,null,"small boxes",null,null,null,null,null,null,null,null,null,null,null,null,null,null,null,null,null,null,null,null,null,null,null,null,null,null,null,null,null,null,null,null,null,null,{"$f":"MAX(BB9:BM9)","v":480}]
[]
[]
[]
[]
[]
[null,null,null,null,null,null,null,null,null,null,null,null,null,null,null,null,null,null,null,null,null,null,null,null,null,null,null,null,null,null,null,null,null,null,null,null,null,null,null,null,null,null,null,null,null,null,null,null,null,null,null,{"$f":"ROUND(RAND()*(15-10)+10,0)","v":11},{"$f":"CONCATENATE(AZ20,\"cm\")","v":"11cm"}]
[null,null,{"$f":"\"Q2. Irn-Bru cans must be stored upright. The are storaged in large cuboid containers measuring \"&BB23&\"m by \"&BB24&\"m by \"&BB25&\"m.\"","v":"Q2. Irn-Bru cans must be stored upright. The are storaged in large cuboid containers measuring 6.93m by 2.31m by 7.56m."},null,null,null,null,null,null,null,null,null,null,null,null,null,null,null,null,null,null,null,null,null,null,null,null,null,null,null,null,null,null,null,null,null,null,null,null,null,null,null,null,null,null,null,null,null,null,null,null,{"$f":"ROUND(1.6*AZ20,0)","v":18},{"$f":"CONCATENATE(AZ21,\"cm\")","v":"18cm"}]
[]
[null,null,null,null,null,null,null,null,null,null,null,null,null,null,null,null,null,null,null,null,null,null,null,null,null,null,null,null,null,null,null,null,null,null,null,null,null,null,null,null,null,null,null,null,null,null,null,null,null,null,null,{"$f":"3*ROUND(RAND()*(50-20)+20,0)","v":63},{"$f":"AZ23*AZ20","v":693},{"$f":"BA23/100","v":6.93}]
[null,null,null,null,null,null,null,null,null,null,null,null,null,null,null,null,null,null,null,null,null,null,null,null,null,null,null,{"$f":"BA21","v":"18cm"},null,null,null,null,null,null,null,null,null,null,null,null,null,null,null,null,null,null,null,null,null,null,null,{"$f":"ROUND(1/3*AZ23,0)","v":21},{"$f":"AZ20*AZ24","v":231},{"$f":"BA24/100","v":2.31}]
[null,null,null,"How many IRN-BRU cans are in the container ?",null,null,null,null,null,null,null,null,null,null,null,null,null,null,null,null,null,null,null,null,null,null,null,null,null,null,null,null,null,null,null,null,null,null,null,null,null,null,null,null,null,null,null,null,null,null,null,{"$f":"ROUND(2/3*AZ23,0)","v":42},{"$f":"AZ21*AZ25","v":756},{"$f":"BA25/100","v":7.56}]
[]
[]
[]
[]
[null,null,null,null,null,null,null,null,null,null,null,null,null,null,null,null,"cans",null,null,null,null,null,null,{"$f":"BA20","v":"11cm"},null,null,null,null,null,null,null,null,null,null,null,null,null,null,null,null,null,null,null,null,null,null,null,null,null,null,null,{"$f":"AZ23*AZ24*AZ25","v":55566}]
[]
[]
[]
[null,null,null,null,null,null,null,null,null,null,null,null,null,null,null,null,null,null,null,null,null,null,null,null,null,null,null,null,null,null,null,null,null,null,null,null,null,null,null,null,null,null,null,null,null,null,null,null,null,null,null,{"$f":"ROUND(RAND()*(12-7)+7,0)*50","v":550},null,"1,1",{"$f":"ROUNDDOWN(AZ34/AZ37,0)","v":5},"1,1",{"$f":"ROUNDDOWN(AZ34/AZ37,0)","v":5},"2,1",{"$f":"ROUNDDOWN(AZ35/AZ37,0)","v":3},"2,1",{"$f":"ROUNDDOWN(AZ35/AZ37,0)","v":3},"3,1",{"$f":"ROUNDDOWN(AZ36/AZ37,0)","v":2},"3,1",{"$f":"ROUNDDOWN(AZ36/AZ37,0)","v":2}]
[null,null,{"$f":"\"Q3. A lorry storage capacity is in the shape of a cuboid and measures \"&AZ34&\"cm by \"&AZ35&\"cm by \"&AZ36&\"cm.\"","v":"Q3. A lorry storage capacity is in the shape of a cuboid and measures 550cm by 350cm by 200cm."},null,null,null,null,null,null,null,null,null,null,null,null,null,null,null,null,null,null,null,null,null,null,null,null,null,null,null,null,null,null,null,null,null,null,null,null,null,null,null,null,null,null,null,null,null,null,null,null,{"$f":"AZ34-100*ROUND(RAND()*(2-1)+1,0)","v":350},null,"2,2",{"$f":"ROUNDDOWN(AZ35/AZ38,0)","v":3},"2,3",{"$f":"ROUNDDOWN(AZ35/AZ39,0)","v":3},"1,2",{"$f":"ROUNDDOWN(AZ34/AZ38,0)","v":5},"1,3",{"$f":"ROUNDDOWN(AZ34/AZ39,0)","v":5},"2,2",{"$f":"ROUNDDOWN(AZ35/AZ38,0)","v":3},"2,3",{"$f":"ROUNDDOWN(AZ35/AZ39,0)","v":3}]
[null,null,null,null,null,null,null,null,null,null,null,null,null,null,null,null,null,null,null,null,null,null,null,null,null,null,null,null,null,null,null,null,null,null,null,null,null,null,null,null,null,null,null,null,null,null,null,null,null,null,null,{"$f":"100*ROUND(RAND()*(2-1)+1,0)","v":200},null,"3,3",{"$f":"ROUNDDOWN(AZ36/AZ39,0)","v":2},"3,2",{"$f":"ROUNDDOWN(AZ36/AZ38,0)","v":2},"3,3",{"$f":"ROUNDDOWN(AZ36/AZ39,0)","v":2},"3,2",{"$f":"ROUNDDOWN(AZ36/AZ38,0)","v":2},"1,3",{"$f":"ROUNDDOWN(AZ34/AZ39,0)","v":5},"1,2",{"$f":"ROUNDDOWN(AZ34/AZ38,0)","v":5}]
[null,null,null,{"$f":"\"Identical cuboid boxes measuring \"&AZ37&\"cm by \"&AZ38&\"cm by \"&AZ39&\"cm.\"","v":"Identical cuboid boxes measuring 100cm by 100cm by 100cm."},null,null,null,null,null,null,null,null,null,null,null,null,null,null,null,null,null,null,null,null,null,null,null,null,null,null,null,null,null,null,null,null,null,null,null,null,null,null,null,null,null,null,null,null,null,null,null,{"$f":"ROUND(RAND()*(3-1)+1,0)*50","v":100},null,0,{"$f":"BC34*BC35*BC36","v":30},0,{"$f":"BE34*BE35*BE36","v":30},0,{"$f":"BG34*BG35*BG36","v":30},0,{"$f":"BI34*BI35*BI36","v":30},0,{"$f":"BK34*BK35*BK36","v":30},0,{"$f":"BM34*BM35*BM36","v":30}]
[null,null,null,null,null,null,null,null,null,null,null,null,null,null,null,null,null,null,null,null,null,null,null,null,null,null,null,null,null,null,null,null,null,null,null,null,null,null,null,null,null,null,null,null,null,null,null,null,null,null,null,{"$f":"ROUND(RAND()*(3-1)+1,0)*50","v":100}]
[null,null,null,"What is the maximum number of boxes the lorry can hold ?",null,null,null,null,null,null,null,null,null,null,null,null,null,null,null,null,null,null,null,null,null,null,null,null,null,null,null,null,null,null,null,null,null,null,null,null,null,null,null,null,null,null,null,null,null,null,null,{"$f":"ROUND(RAND()*(3-1)+1,0)*50","v":100}]
[null,null,null,null,null,null,null,null,null,null,null,null,null,null,null,null,null,null,null,null,null,null,null,null,null,null,null,null,null,null,null,null,null,null,null,null,null,null,null,null,null,null,null,null,null,null,null,null,null,null,null,{"$f":"AZ34*AZ35*AZ36","v":38500000}]
[null,null,null,null,null,null,null,null,null,null,null,null,null,null,null,null,null,null,null,null,null,null,null,null,null,null,null,null,null,null,null,null,null,null,null,null,null,null,null,null,null,null,null,null,null,null,null,null,null,null,null,{"$f":"AZ37*AZ38*AZ39","v":1000000},{"$f":"AZ40/AZ41","v":38.5}]
[null,null,null,"(  HINT : There are few different ways to fit the boxes into the lorry )",null,null,null,null,null,null,null,null,null,null,null,null,null,null,null,null,null,null,null,null,null,null,null,null,null,null,null,null,null,null,null,null,null,null,null,null,null,null,null,null,null,null,null,null,null,null,null,{"$f":"MAX(BB37:BM37)","v":30}]
[]
[null,null,null,null,null,null,null,null,null,null,null,null,null,null,null,null,"boxes"]